bitfinex/quotes_ETHUSD_20250130
["timestamp","ask_amount","ask_price","bid_price","bid_amount"]
[1738279133018,3.06065,3267.3,3267.1,0.201]
[1738279133510,6.12123,3267.4,3267.1,0.201]
[1738279133873,3.06063,3267.3,3267.1,0.201]
[1738279134072,0.61256792,3267.6,3267.2,35.565]
[1738279134283,0.61256792,3267.6,3267.4,3.07551]
[1738279134579,3.06003,3268.0,3267.4,3.10611071]
[1738279134779,3.06003,3268.0,3267.5,3.06043]
[1738279134975,3.06003,3268.0,3267.6,35.03059999]
[1738279135288,3.05979,3268.2,3267.7,0.55]
[1738279135719,3.05979,3268.2,3267.8,0.015]
[1738279135869,3.05979,3268.2,3267.9,35.0]
[1738279136275,0.59852892,3268.6,3268.1,3.0598]
[1738279136477,3.05928,3268.8,3268.2,3.09031367]
[1738279136706,3.05928,3268.8,3268.3,0.201]
[1738279136875,3.05928,3268.8,3268.4,35.0]
[1738279137198,3.05937,3268.7,3268.4,35.0]
[1738279138011,3.05942,3268.6,3268.4,35.0]
[1738279138213,3.0595,3268.5,3268.4,35.0]
[1738279138454,3.0595,3268.5,3268.4,35.201]
[1738279138654,0.61854722,3269.2,3268.5,0.0075]
[1738279138851,3.059,3269.1,3268.5,3.09755104]
[1738279139312,3.2252,3269.3,3268.8,0.0075]
[1738279139511,3.2252,3269.3,3268.9,0.0075]
[1738279139713,0.16641,3269.3,3268.9,0.0075]
[1738279140216,0.16641,3269.3,3269.0,0.03058726]
[1738279140412,0.16641,3269.3,3269.1,0.216]
[1738279140817,0.16641,3269.3,3269.2,3.09693478]
[1738279141227,0.16641,3269.3,3269.2,3.65443478]
[1738279141633,0.16641,3269.3,3269.2,38.62385]
[1738279143055,0.16641,3269.3,3269.2,0.2085]
[1738279143360,3.22522,3269.3,3269.2,0.201]
[1738279143561,0.16641,3269.3,3269.2,0.201]
[1738279146095,3.22516,3269.3,3269.2,0.201]
[1738279146395,0.16641,3269.3,3269.2,0.201]
[1738279147198,0.16641,3269.3,3269.2,35.201]
[1738279147695,3.22516,3269.3,3269.2,35.201]
[1738279148898,0.16641,3269.3,3268.1,3.05983]
[1738279149106,0.16641,3269.3,3268.2,0.201]
[1738279149107,3.05928,3268.8,3268.2,0.201]
[1738279149289,3.05932,3268.7,3268.4,0.0075]
[1738279149821,3.05941,3268.6,3268.5,0.2085]
[1738279150177,3.05941,3268.6,3268.5,35.0]
[1738279150379,3.05941,3268.6,3268.5,35.201]
[1738279150915,3.05941,3268.6,3268.5,35.0]
[1738279151138,3.05941,3268.6,3268.5,35.201]
[1738279153289,3.05941,3268.6,3268.5,0.201]
[1738279153889,3.05941,3268.6,3268.5,35.201]
[1738279156834,3.05941,3268.6,3268.5,0.201]
[1738279157336,3.05941,3268.6,3268.5,35.201]
[1738279159340,3.05933,3268.7,3268.5,35.201]
[1738279159627,3.05941,3268.6,3268.5,35.201]
[1738279163099,3.84521,3268.6,3268.5,35.201]
[1738279165814,4.841586,3268.6,3268.5,35.0]
[1738279166507,3.05969,3268.3,3268.2,0.201]
[1738279166931,0.996376,3268.6,3267.6,35.0]
[1738279167137,3.06019,3267.8,3267.7,0.201]
[1738279167725,3.06019,3267.8,3267.7,35.201]
[1738279168103,3.06019,3267.8,3267.7,35.0]
[1738279168408,3.06019,3267.8,3267.7,35.201]
[1738279168937,3.06007,3267.9,3267.7,35.201]
[1738279169871,3.06016,3267.8,3267.7,35.201]
[1738279171035,3.06007,3267.9,3267.7,35.201]
[1738279171366,3.05971,3268.3,3267.8,0.0075]
[1738279171721,3.05978,3268.2,3267.8,0.0075]
[1738279172364,0.8236,3268.4,3267.8,0.0075]
[1738279172653,3.05999,3268.0,3267.8,0.0075]
[1738279172857,3.05997,3268.1,3267.8,0.0075]
[1738279174925,3.05997,3268.1,3267.9,35.0]
[1738279176274,6.11948,3268.3,3267.9,35.0]
[1738279176474,3.05979,3268.2,3267.9,35.0]
[1738279178472,3.0599,3268.1,3267.9,35.0]
[1738279179567,3.05997,3268.0,3267.9,35.0075]
[1738279181669,3.05987,3268.2,3267.9,35.0075]
[1738279182949,3.05987,3268.2,3267.9,0.0075]
[1738279183519,3.05987,3268.2,3268.0,35.0]
[1738279186217,3.05978,3268.2,3268.0,35.0]
[1738279186513,3.05975,3268.3,3268.0,35.0]
[1738279186681,3.05978,3268.2,3268.0,35.0]
[1738279188035,3.05988,3268.1,3268.0,35.0]
[1738279190828,3.06011,3267.9,3267.7,0.201]
[1738279191192,3.06011,3267.9,3267.8,35.0]
[1738279192506,3.05992,3268.1,3267.8,35.0]
[1738279192806,3.06005,3268.0,3267.8,35.0]
[1738279198331,3.06006,3267.9,3267.8,35.0]
[1738279198537,3.06039,3267.6,3267.3,0.0075]
[1738279198915,3.06039,3267.6,3267.4,0.201]
[1738279199114,3.06039,3267.6,3267.5,35.0]
[1738279199342,0.7641,3267.9,3267.5,35.0]
[1738279199343,0.7641,3267.9,3267.5,35.201]
[1738279199636,3.06035,3267.6,3267.5,35.201]
[1738279200443,3.06035,3267.6,3267.5,35.0]
[1738279200613,3.06085,3267.1,3266.6,2.423]
[1738279200816,3.061,3266.9,3266.8,0.201]
[1738279201124,3.061,3266.9,3266.6,2.423]
[1738279201328,3.061,3266.9,3266.7,0.201]
[1738279201529,3.06051,3267.5,3266.8,0.04560963]
[1738279201835,3.06031,3267.7,3267.2,0.0075]
[1738279202015,3.06031,3267.7,3267.0,3.06084]
[1738279202234,3.06031,3267.7,3267.1,0.0075]
[1738279202620,3.06031,3267.7,3267.1,3.0683]
[1738279202815,3.06035,3267.6,3267.1,3.0683]
[1738279203139,3.06031,3267.7,3267.1,0.0075]
[1738279203344,0.8119,3267.4,3267.0,0.0075]
[1738279203644,3.06069,3267.3,3267.2,0.19723446]
[1738279205771,3.06081,3267.1,3266.6,5.49174]
[1738279206057,3.06089,3267.1,3266.6,2.423]
[1738279206257,3.061,3266.9,3266.7,0.201]
[1738279206558,3.061,3266.9,3266.4,8.27505872]
[1738279206760,0.8272,3266.8,3266.5,0.201]
[1738279206926,3.061,3266.9,3266.5,0.201]
[1738279207458,0.7668,3267.1,3266.7,0.0075]
[1738279207756,0.60289081,3267.7,3267.0,3.06082]
[1738279207757,3.06037,3267.6,3267.0,3.06082]
[1738279208074,3.06044,3267.5,3267.0,3.09142531]
[1738279209838,3.0599,3268.1,3267.1,0.565]
[1738279209839,3.85126,3268.1,3267.1,0.565]
[1738279210023,3.05996,3268.1,3267.6,0.0075]
[1738279210764,3.06004,3268.0,3267.6,0.0075]
[1738279210928,0.8296,3268.3,3267.6,0.0075]
[1738279211120,3.05996,3268.1,3267.6,0.0075]
[1738279212139,3.05984,3268.2,3267.6,0.0075]
[1738279212340,3.05998,3268.0,3267.6,0.0075]
[1738279213865,3.05984,3268.2,3267.6,3.0678]
[1738279214062,3.05984,3268.2,3267.6,0.0075]
[1738279214265,3.05994,3268.1,3267.6,0.0075]
[1738279214441,3.06006,3268.0,3267.4,3.06047]
[1738279214768,3.06006,3268.0,3267.6,0.0075]
[1738279214968,3.05988,3268.1,3267.6,0.0075]
[1738279215175,3.05988,3268.1,3267.6,3.06784]
[1738279215470,6.11983,3268.1,3267.6,0.0075]
[1738279215644,3.05988,3268.1,3267.6,0.0075]
[1738279215846,3.05988,3268.1,3267.6,0.03809988]
[1738279216047,3.05999,3268.0,3267.6,0.0075]
[1738279216247,3.05998,3268.0,3267.4,0.565]
[1738279216474,3.05998,3268.0,3267.4,3.62552]
[1738279217975,0.8296,3268.3,3267.4,0.0075]
[1738279218140,3.06021,3267.8,3267.2,3.06066]
[1738279218472,3.06021,3267.8,3267.3,3.62558]
[1738279218878,6.12007,3268.0,3267.5,0.0075]
[1738279219381,3.06001,3268.0,3267.5,0.0075]
[1738279219672,3.06001,3268.0,3267.5,0.03810125]
[1738279219864,3.0601,3267.9,3267.5,0.03810125]
[1738279220066,3.06001,3268.0,3267.5,0.03810125]
[1738279222592,3.06001,3268.0,3267.5,0.0075]
[1738279222974,6.12005,3268.0,3267.5,0.0075]
[1738279223896,3.06009,3267.9,3267.5,0.0075]
[1738279224636,3.06001,3268.0,3267.5,0.0075]
[1738279224941,3.06025,3267.7,3267.6,0.201]
[1738279225140,0.7855,3267.9,3266.7,11.99114]
[1738279225141,3.06064,3267.3,3266.7,11.99114]
[1738279225365,3.06072,3267.2,3266.9,0.0075]
[1738279225779,3.84605,3267.4,3266.9,0.0075]
[1738279226143,3.84605,3267.4,3266.9,3.0685]
[1738279226661,0.14989049,3268.5,3267.1,3.06826]
[1738279226662,3.06032,3267.7,3267.1,3.06826]
[1738279226841,3.06032,3267.7,3267.1,6.15960426]
[1738279227042,3.06032,3267.7,3267.1,3.09884426]
[1738279227275,3.06032,3267.7,3267.1,6.15959426]
[1738279227756,3.06032,3267.7,3267.1,3.09884426]
[1738279228877,3.01032,3267.7,3267.1,3.09884426]
[1738279230377,3.01032,3267.7,3267.1,0.03810426]
[1738279230583,3.06036,3267.6,3267.1,0.0075]
[1738279232082,3.06036,3267.6,3267.1,3.37479]
[1738279232297,0.04723176,3267.5,3267.1,3.06829]
[1738279232493,0.04723176,3267.5,3267.0,0.55]
[1738279232494,3.05997,3268.0,3267.5,3.06038]
[1738279236461,0.04460089,3267.9,3267.5,3.06038]
[1738279237567,3.10467089,3267.9,3267.4,0.0075]
[1738279237790,0.04460089,3267.9,3267.4,0.0075]
[1738279238007,3.10472089,3267.9,3267.4,0.0075]
[1738279238664,3.06019,3267.8,3267.4,0.0075]
[1738279238977,0.04481924,3267.7,3267.4,0.0075]
[1738279239426,3.06019,3267.8,3267.4,0.0075]
[1738279239951,0.04481924,3267.7,3267.4,0.0075]
[1738279240111,3.06019,3267.8,3267.4,0.0075]
[1738279240326,0.04478867,3267.6,3267.4,0.0075]
[1738279240618,3.06019,3267.8,3267.4,0.0075]
[1738279240820,0.04475809,3267.5,3267.4,0.0075]
[1738279241338,3.00494809,3267.8,3267.4,0.0075]
[1738279241653,0.04315959,3267.5,3267.4,0.0075]
[1738279241796,0.8183,3267.7,3266.7,8.93]
[1738279242155,3.06051,3267.5,3267.0,0.565]
[1738279242472,3.06053,3267.4,3267.0,0.565]
[1738279242597,3.10211727,3267.4,3267.1,0.201]
[1738279243038,3.10211727,3267.4,3267.2,35.0]
[1738279243242,3.06063,3267.3,3267.2,35.0]
[1738279243404,3.06063,3267.3,3267.2,35.201]
[1738279243723,3.10221441,3267.3,3267.2,35.201]
[1738279246443,3.10221441,3267.3,3267.2,0.201]
[1738279246816,3.10221441,3267.3,3267.2,35.201]
[1738279247316,3.06063,3267.3,3267.2,35.201]
[1738279249207,3.88343,3267.3,3267.2,35.201]
[1738279249716,3.92328179,3267.3,3267.2,35.201]
[1738279250832,3.10048179,3267.3,3267.2,35.201]
[1738279253006,3.10048179,3267.3,3267.2,0.201]
[1738279253210,3.06063,3267.3,3267.2,0.201]
[1738279253529,3.10017378,3267.3,3267.2,35.201]
[1738279254947,3.10017378,3267.3,3267.2,0.201]
[1738279258862,3.10017378,3267.3,3267.2,35.201]
[1738279260064,3.06063,3267.3,3267.2,35.201]
[1738279260369,3.09867581,3267.3,3267.2,35.201]
[1738279267010,0.03804581,3267.3,3267.2,35.201]
[1738279267364,3.0605,3267.5,3267.2,35.201]
[1738279267611,0.03658617,3267.3,3267.2,35.201]
[1738279267777,3.0605,3267.5,3267.2,35.201]
[1738279267980,0.03658617,3267.3,3267.2,35.201]
[1738279268179,3.0605,3267.5,3267.2,35.0]
[1738279268395,3.0605,3267.5,3267.3,0.201]
[1738279268564,0.03661676,3267.4,3267.3,0.201]
[1738279270377,3.09714676,3267.4,3267.3,0.201]
[1738279271885,0.03661676,3267.4,3267.3,0.201]
[1738279272060,0.03661676,3267.4,3267.3,3.85723401]
[1738279272259,3.05984,3268.2,3267.5,0.0075]
[1738279272561,0.0368868,3268.1,3267.7,0.0075]
[1738279272762,3.0599,3268.1,3267.7,0.0075]
[1738279272961,3.06029,3267.7,3267.3,35.201]
[1738279273369,0.03677709,3267.6,3267.3,35.201]
[1738279273700,3.06046,3267.5,3267.3,35.201]
[1738279274069,0.03678377,3267.4,3267.3,35.2085]
[1738279274270,3.06046,3267.5,3267.3,35.2085]
[1738279274507,3.06029,3267.7,3267.3,35.2085]
[1738279274680,0.03684494,3267.6,3267.3,35.2085]
[1738279275002,3.06029,3267.7,3267.3,35.2085]
[1738279275161,0.03681436,3267.5,3267.3,35.2085]
[1738279275362,3.06029,3267.7,3267.3,35.2085]
[1738279275566,0.03678377,3267.4,3267.3,35.2085]
[1738279275865,3.06029,3267.7,3267.3,35.2085]
[1738279276261,0.03684494,3267.6,3267.3,35.2085]
[1738279276661,3.06029,3267.7,3267.3,35.2085]
[1738279276969,3.09725494,3267.6,3267.3,35.2085]
[1738279277278,3.06041,3267.6,3267.3,35.2085]
[1738279281229,3.06011,3267.9,3267.3,35.2085]
[1738279281380,0.03688221,3267.5,3267.4,3.06798]
[1738279281716,3.06011,3267.9,3267.4,3.09858173]
[1738279281898,0.03682979,3267.5,3267.4,3.09858173]
[1738279282104,3.06011,3267.9,3267.4,3.09858173]
[1738279282306,0.03692153,3267.8,3267.4,3.06798]
[1738279284179,3.06049,3267.5,3267.3,35.0]
[1738279284385,3.06049,3267.5,3267.4,0.201]
[1738279285635,3.06049,3267.5,3267.3,35.201]
[1738279286289,3.0603,3267.7,3267.3,35.201]
[1738279286522,3.06035,3267.6,3267.3,35.201]
[1738279286704,3.0603,3267.7,3267.3,35.201]
[1738279287038,3.86723,3267.4,3267.3,35.201]
[1738279288516,3.06051,3267.5,3267.3,35.201]
[1738279288722,3.06013,3267.9,3267.4,3.06802]
[1738279288921,3.06013,3267.9,3267.4,0.0075]
[1738279289125,3.06016,3267.8,3267.4,0.0075]
[1738279289299,0.62722631,3268.0,3267.5,0.0075]
[1738279289500,0.62722631,3268.0,3267.5,0.015]
[1738279289708,3.0,3268.2,3267.5,0.015]
[1738279290033,3.0,3268.2,3267.7,0.565]
[1738279290232,3.05993,3268.1,3267.6,35.0]
[1738279290524,3.09573239,3268.0,3267.6,35.0]
[1738279290929,3.06011,3267.9,3267.6,35.0]
[1738279291235,3.06017,3267.8,3267.6,35.0]
[1738279291609,0.03563717,3267.7,3267.6,35.0]
[1738279291849,3.06017,3267.8,3267.6,35.0]
[1738279292031,0.03562537,3267.7,3267.6,35.0]
[1738279292844,3.06017,3267.8,3267.6,35.0]
[1738279292997,0.03562537,3267.7,3267.6,35.0]
[1738279293343,0.03562537,3267.7,3267.6,35.201]
[1738279293514,3.06017,3267.8,3267.6,35.201]
[1738279294631,3.06017,3267.8,3267.7,0.201]
[1738279295643,3.06017,3267.8,3267.6,35.0]
[1738279295846,3.752748,3267.7,3267.6,35.0]
[1738279296028,3.84974,3267.5,3267.4,0.201]
[1738279296355,3.88526772,3267.5,3267.4,0.201]
[1738279296502,3.88526772,3267.5,3267.4,35.201]
[1738279297318,3.84974,3267.5,3267.4,35.201]
[1738279299035,3.88526772,3267.5,3267.4,35.201]
[1738279301148,3.06068,3267.3,3266.6,3.06128]
[1738279301456,3.06077,3267.2,3266.7,0.201]
[1738279301605,3.09292721,3267.2,3266.8,35.0]
[1738279301799,3.06077,3267.2,3266.8,35.0]
[1738279302036,3.06096,3267.0,3266.8,35.0]
[1738279302217,3.061,3266.9,3266.8,35.0]
[1738279302447,3.09305361,3266.9,3266.8,35.0]
[1738279306264,3.0611,3266.8,3266.4,0.201]
[1738279306443,3.06129,3266.6,3266.4,0.201]
[1738279306832,3.06129,3266.6,3266.5,35.0]
[1738279310467,3.8333,3266.8,3266.5,35.0]
[1738279310667,3.0611,3266.8,3266.5,35.0]
[1738279310872,6.74493917,3267.0,3266.5,35.0]
[1738279311276,3.06101,3266.9,3266.5,35.0]
[1738279311449,3.09218574,3266.9,3266.5,35.0]
[1738279312982,3.09218574,3266.9,3266.4,3.26247]
[1738279313690,3.09218574,3266.9,3266.4,38.26247]
[1738279315369,3.0611,3266.8,3266.4,35.201]
[1738279315910,0.03084451,3266.7,3266.4,35.201]
[1738279316269,3.0611,3266.8,3266.4,35.201]
[1738279316671,0.03080908,3266.7,3266.4,35.201]
[1738279317206,3.0611,3266.8,3266.4,35.201]
[1738279317418,0.03079029,3266.6,3266.4,35.201]
[1738279317718,3.0611,3266.8,3266.4,35.201]
[1738279318220,0.03082089,3266.7,3266.4,35.201]
[1738279318370,3.0611,3266.8,3266.4,35.201]
[1738279318575,0.03079029,3266.6,3266.4,35.201]
[1738279318788,3.0611,3266.8,3266.4,35.201]
[1738279319020,0.03074787,3266.5,3266.4,35.201]
[1738279319223,3.0611,3266.8,3266.4,35.201]
[1738279319421,0.03015611,3266.5,3266.4,35.201]
[1738279319623,3.0611,3266.8,3266.4,35.201]
[1738279319824,0.03015611,3266.5,3266.4,35.201]
[1738279320025,3.0611,3266.8,3266.4,35.201]
[1738279320209,0.03015611,3266.5,3266.4,35.201]
[1738279320412,3.0611,3266.8,3266.4,35.201]
[1738279320725,0.03015611,3266.5,3266.4,35.201]
[1738279320880,3.0611,3266.8,3266.4,35.201]
[1738279320881,3.0611,3266.8,3266.4,35.48560072]
[1738279321082,3.06096,3267.0,3266.4,35.48560072]
[1738279321387,3.0611,3266.8,3266.4,35.48560072]
[1738279321783,0.03020189,3266.7,3266.4,35.48560072]
[1738279322013,3.0611,3266.8,3266.4,35.48560072]
[1738279322189,0.03017129,3266.6,3266.4,35.48560072]
[1738279322402,3.0611,3266.8,3266.4,35.201]
[1738279322596,0.03015249,3266.5,3266.4,35.2085]
[1738279322830,3.0611,3266.8,3266.4,35.2085]
[1738279323025,0.03014068,3266.5,3266.4,38.26988]
[1738279323312,3.06096,3267.0,3266.5,3.06137]
[1738279323724,0.02915134,3266.9,3266.5,3.06137]
[1738279324009,0.02915134,3266.9,3266.6,35.0]
[1738279324210,3.09022134,3266.9,3266.6,35.0]
[1738279324417,3.06107,3266.9,3266.6,35.0]
[1738279325474,3.06111,3266.8,3266.6,35.0]
[1738279325674,3.06119,3266.7,3266.6,35.0]
[1738279327217,3.06107,3266.9,3266.6,35.0]
[1738279327519,3.06096,3267.0,3266.4,0.2085]
[1738279327720,3.06111,3266.8,3266.4,0.2085]
[1738279327919,3.06111,3266.8,3266.5,35.0]
[1738279328523,3.06111,3266.8,3266.5,35.28500225]
[1738279329524,3.06123,3266.7,3266.5,0.28500225]
[1738279329899,3.06111,3266.8,3266.5,0.28500225]
[1738279330101,6.12229,3266.8,3266.5,0.28500225]
[1738279330299,3.06111,3266.8,3266.6,0.28500225]
[1738279330528,6.12229,3266.8,3266.6,0.28500225]
[1738279330825,3.06111,3266.8,3266.6,0.28500225]
[1738279331822,6.12228,3266.8,3266.6,0.28500225]
[1738279332217,3.06111,3266.8,3266.6,0.28500225]
[1738279332427,3.06119,3266.7,3266.4,0.201]
[1738279333322,6.12227,3266.8,3266.4,0.201]
[1738279333498,6.12227,3266.8,3266.5,0.28530286]
[1738279333698,3.0612,3266.7,3266.5,0.28530286]
[1738279334619,3.06111,3266.8,3266.5,0.28530286]
[1738279334826,3.06128,3266.6,3266.5,0.28530286]
[1738279335026,3.06128,3266.6,3266.4,0.201]
[1738279335323,3.06146,3266.5,3266.3,0.201]
[1738279335683,3.06147,3266.4,3266.2,35.0]
[1738279335903,3.84636,3266.3,3266.2,35.201]
[1738279336388,3.84636,3266.3,3266.2,35.0]
[1738279336908,3.84636,3266.3,3266.2,35.2854127]
[1738279338832,3.06171,3266.2,3266.0,0.201]
[1738279339420,3.06171,3266.2,3266.1,35.0]
[1738279342393,3.84636,3266.3,3265.3,5.48649]
[1738279342595,3.0621,3265.8,3265.4,0.201]
[1738279342888,3.0621,3265.8,3265.5,35.0]
[1738279343492,3.06218,3265.7,3265.5,35.0]
[1738279343740,3.06222,3265.6,3265.5,35.0]
[1738279344692,3.06222,3265.6,3265.5,35.28489107]
[1738279345297,3.06222,3265.6,3265.5,35.48589107]
[1738279345523,3.06222,3265.6,3265.5,35.28489107]
[1738279345737,3.06222,3265.6,3265.5,35.48589107]
[1738279345941,3.06222,3265.6,3265.5,35.201]
[1738279347103,3.752962,3265.6,3265.5,35.0]
[1738279347358,3.06241,3265.4,3265.3,2.424]
[1738279348240,3.06241,3265.4,3265.2,35.201]
[1738279349199,3.06236,3265.5,3265.2,35.201]
[1738279349348,3.06241,3265.4,3265.2,35.201]
[1738279350801,3.06241,3265.4,3265.2,0.201]
[1738279351898,3.06241,3265.4,3265.2,35.201]
[1738279352392,0.60842275,3265.9,3265.2,35.201]
[1738279352393,0.60842275,3265.9,3265.3,0.0075]
[1738279352653,3.85498,3266.3,3265.8,3.06203]
[1738279352978,3.06158,3266.3,3265.8,3.06203]
[1738279353174,3.06158,3266.3,3265.9,35.0]
[1738279353507,3.0612,3266.7,3266.0,0.565]
[1738279353664,3.0612,3266.7,3266.1,3.06166]
[1738279354205,3.0612,3266.7,3266.2,35.0]
[1738279354500,3.0612,3266.7,3266.2,38.06162]
[1738279357604,3.06131,3266.6,3266.2,35.0]
[1738279357804,3.06154,3266.4,3266.3,0.201]
[1738279358603,0.806,3266.5,3266.3,0.201]
[1738279359166,3.86747,3266.5,3266.3,0.201]
[1738279360409,0.806,3266.5,3266.3,0.201]
[1738279362815,3.87952,3266.8,3266.3,3.26255]
[1738279364886,2.85154708,3267.2,3266.5,3.06136]
[1738279364887,0.8184,3267.1,3266.5,3.06136]
[1738279365211,0.8184,3267.1,3266.6,3.0612]
[1738279366508,3.87922,3267.1,3266.6,3.0612]
[1738279367877,3.87922,3267.1,3266.7,35.0]
[1738279368610,3.66412322,3267.3,3266.7,38.06112]
[1738279368774,3.788,3267.4,3266.9,0.0075]
[1738279368974,7.4548863,3267.4,3266.9,0.0075]
[1738279369212,7.4548863,3267.4,3266.9,3.06849]
[1738279370715,3.06064,3267.3,3266.8,0.565]
[1738279371124,3.06064,3267.3,3266.8,0.0075]
[1738279371283,3.06073,3267.2,3266.9,0.201]
[1738279373315,3.06073,3267.2,3267.0,0.201]
[1738279376931,3.06073,3267.2,3266.8,35.0075]
[1738279377131,3.06091,3267.0,3266.9,0.201]
[1738279380636,3.06091,3267.0,3266.9,35.0]
[1738279380856,0.7843,3267.0,3266.4,0.55]
[1738279381139,3.06123,3266.7,3266.5,0.2085]
[1738279381339,3.06123,3266.7,3266.6,35.201]
[1738279385439,3.06123,3266.7,3266.6,35.0]
[1738279385626,3.06123,3266.7,3266.6,35.201]
[1738279386827,3.06123,3266.7,3266.6,35.0]
[1738279387028,3.06123,3266.7,3266.6,35.201]
[1738279387638,3.89443,3266.7,3266.6,35.0]
[1738279392338,6.89443,3266.7,3266.6,35.0]
[1738279392543,7.65205365,3266.7,3266.6,35.0]
[1738279396636,7.65205365,3266.7,3266.2,0.201]
[1738279396637,3.06156,3266.3,3266.2,0.201]
[1738279397151,3.06156,3266.3,3266.2,35.201]
[1738279398346,3.06156,3266.3,3266.2,35.0]
[1738279398649,3.06156,3266.3,3266.2,35.201]
[1738279399034,3.06156,3266.3,3266.2,35.0]
[1738279413243,3.06156,3266.3,3266.2,35.28516248]
[1738279413777,0.7743,3267.3,3266.2,35.28516248]
[1738279413996,3.0606,3267.4,3266.7,0.0075]
[1738279414189,3.0,3267.2,3266.7,0.0075]
[1738279414488,3.06072,3267.2,3266.7,3.06861]
[1738279414691,3.06072,3267.2,3266.8,35.0]
[1738279414868,3.06072,3267.2,3266.8,35.28516248]
[1738279415329,3.06019,3267.8,3266.8,35.28516248]
[1738279415330,3.061,3266.9,3266.8,0.28516248]
[1738279416083,3.061,3266.9,3266.7,0.201]
[1738279416378,3.06109,3266.8,3266.7,0.201]
[1738279419363,3.0609,3267.1,3266.7,0.201]
[1738279422046,3.0609,3267.1,3266.7,35.201]
[1738279422445,3.06092,3267.0,3266.7,35.201]
[1738279423170,3.0609,3267.1,3266.7,0.201]
[1738279425396,3.0609,3267.1,3266.8,35.0]
[1738279425599,3.06067,3267.3,3266.8,35.0]
[1738279426100,3.06082,3267.1,3266.8,35.0]
[1738279428783,0.62135339,3267.4,3266.8,35.0]
[1738279428784,3.061,3266.9,3266.8,35.0]
[1738279429133,3.061,3266.9,3266.8,0.201]
[1738279432040,3.06087,3267.1,3266.8,0.201]
[1738279432734,3.06087,3267.1,3266.9,35.0]
[1738279433093,3.06091,3267.0,3266.9,35.0]
[1738279433828,3.06091,3267.0,3266.8,0.201]
[1738279434028,3.061,3266.9,3266.8,0.201]
[1738279434641,3.06091,3267.0,3266.8,0.201]
[1738279434999,6.12189,3267.0,3266.8,0.201]
[1738279435543,3.061,3266.9,3266.8,0.201]
[1738279436872,3.06072,3267.2,3266.6,0.28486309]
[1738279437029,3.06119,3266.7,3266.6,0.28486309]
[1738279437235,3.06119,3266.7,3266.6,0.48586309]
[1738279437434,3.06119,3266.7,3266.6,0.201]
[1738279438857,3.06128,3266.6,3266.5,35.0]
[1738279441180,0.7894,3266.9,3266.5,35.0]
[1738279441339,3.06106,3266.9,3266.5,35.0]
[1738279441664,3.06091,3267.0,3266.5,35.0]
[1738279441853,3.06111,3266.8,3266.5,35.0]
[1738279442439,3.06109,3266.8,3266.5,35.0]
[1738279442638,3.06119,3266.7,3266.5,35.0]
[1738279443065,3.06119,3266.7,3266.3,0.201]
[1738279443495,3.06119,3266.7,3266.4,35.0]
[1738279444585,3.06111,3266.8,3266.4,35.0]
[1738279445679,3.06111,3266.8,3266.5,0.28540676]
[1738279446257,3.06111,3266.8,3266.6,35.0]
[1738279448255,3.06111,3266.8,3266.3,3.26254]
[1738279448857,3.06111,3266.8,3266.4,35.2853851]
[1738279449988,3.06059,3267.4,3266.7,3.06118]
[1738279450190,3.0,3267.3,3266.8,3.06854]
[1738279450594,3.0,3267.3,3266.9,35.0]
[1738279450755,6.06064,3267.3,3266.9,35.0]
[1738279451093,3.8216,3267.7,3266.9,35.0]
[1738279451297,3.06085,3267.1,3266.9,35.0]
[1738279452504,4.46059485,3267.3,3266.3,3.27003]
[1738279452505,3.06101,3266.9,3266.3,3.06153]
[1738279452674,3.0611,3266.8,3266.4,0.201]
[1738279452884,3.0611,3266.8,3266.5,0.201]
[1738279455780,3.06119,3266.7,3266.5,0.201]
[1738279455981,3.06119,3266.7,3266.0,3.61932]
[1738279456196,3.06119,3266.7,3265.2,3.83014513]
[1738279456197,3.06133,3266.6,3266.1,0.201]
[1738279456406,3.06133,3266.6,3266.2,0.201]
[1738279456912,3.06119,3266.7,3266.2,0.201]
[1738279457216,3.06138,3266.5,3266.2,0.201]
[1738279458422,3.06138,3266.5,3266.3,0.28551317]
[1738279459831,3.06138,3266.5,3266.4,0.28551317]
[1738279463426,3.06138,3266.5,3266.4,0.48651317]
[1738279463624,6.12247,3266.7,3266.4,0.48651317]
[1738279465024,3.06119,3266.7,3266.4,0.201]
[1738279467139,3.0613,3266.6,3266.4,0.201]
[1738279475302,3.06138,3266.5,3266.0,3.06933]
[1738279475528,3.06152,3266.4,3266.1,0.201]
[1738279477617,3.06152,3266.4,3266.2,0.28551464]
[1738279478039,0.7804,3266.5,3266.2,0.28551464]
[1738279478220,3.0613,3266.6,3266.2,0.28551464]
[1738279478417,3.06097,3267.0,3266.3,3.06153]
[1738279478663,3.06097,3267.0,3266.4,3.06144]
[1738279478821,0.829,3267.1,3266.3,3.06153]
[1738279479020,3.0611,3266.8,3266.3,3.06153]
[1738279480133,3.0611,3266.8,3266.4,0.28537508]
[1738279481570,3.0611,3266.8,3266.3,3.06153]
[1738279481967,3.0611,3266.8,3266.4,3.06147]
[1738279482349,3.06099,3267.0,3266.4,3.06147]